fUSD/lending_fUSD_20260418
["ID","MTS","AMOUNT","RATE_DAILY","PERIOD"]
[420664066,1776448232406,-1694.9157,7.664e-05,2]
[420664067,1776448232415,-378.0,7.666e-05,7]
[420664069,1776448232425,-150.0,7.68e-05,2]
[420664070,1776448232434,-150.0,7.68e-05,2]
[420664071,1776448232444,-784.2499,7.699e-05,2]
[420664072,1776448232453,-150.0,7.718e-05,2]
[420664073,1776448232463,-166.66,7.719e-05,2]
[420664074,1776448232472,-150.0,7.747e-05,2]
[420664075,1776448232482,-150.0,7.747e-05,2]
[420664076,1776448232492,-150.0,7.75e-05,2]
[420664077,1776448232502,-1280.88388878,7.76e-05,2]
[420664078,1776448232512,-8565.75555911,7.76e-05,2]
[420664079,1776448232523,-646.65982734,7.76e-05,2]
[420664080,1776448232533,-200.0,7.76e-05,2]
[420664081,1776448232544,-151.19296277,7.76e-05,2]
[420664082,1776448232554,-151.0,7.76e-05,2]
[420664083,1776448232564,-743.50770149,7.76e-05,2]
[420664084,1776448232574,-500.0,7.76e-05,2]
[420664085,1776448232584,-500.0,7.76e-05,2]
[420664086,1776448232604,-500.0,7.76e-05,2]
[420664087,1776448232614,-500.0,7.76e-05,2]
[420664088,1776448232624,-211.40802048,7.76e-05,2]
[420664089,1776448232633,-500.0,7.76e-05,2]
[420664090,1776448232643,-219.23011724,7.76e-05,2]
[420664091,1776448232654,-500.0,7.76e-05,2]
[420664092,1776448232663,-500.0,7.76e-05,2]
[420664093,1776448232672,-227.34163157,7.76e-05,2]
[420664094,1776448232682,-500.0,7.76e-05,2]
[420664095,1776448232692,-235.75327194,7.76e-05,2]
[420664096,1776448232702,-174.61919141,7.76e-05,2]
[420664097,1776448232712,-244.476143,7.76e-05,2]
[420664098,1776448232722,-500.0,7.76e-05,2]
[420664099,1776448232732,-253.52176029,7.76e-05,2]
[420664100,1776448232741,-10000.0,7.76e-05,2]
[420664101,1776448232751,-500.0,7.76e-05,2]
[420664102,1776448232761,-4582.66611369,7.76e-05,2]
[420664103,1776448232771,-500.0,7.76e-05,2]
[420664104,1776448232780,-262.90206542,7.76e-05,2]
[420664105,1776448232790,-187.78006525,7.76e-05,2]
[420664106,1776448232799,-500.0,7.76e-05,2]
[420664107,1776448232809,-151.14281807,7.76e-05,2]
[420664108,1776448232819,-303.00482207,7.76e-05,2]
[420664109,1776448232828,-500.0,7.76e-05,2]
[420664110,1776448232838,-500.0,7.76e-05,2]
[420664111,1776448232848,-279.9045709,7.76e-05,2]
[420664112,1776448232858,-270.65733243,7.76e-05,2]
[420664113,1776448232867,-1000.0,7.764e-05,2]
[420664114,1776448232877,-1987.12883571,7.764e-05,2]
[420664115,1776448232886,-283.51600777,7.764e-05,2]
[420664116,1776448232896,-4823.0140155,7.764e-05,2]
[420664117,1776448232906,-155.0,7.764e-05,2]
[420664118,1776448232916,-5649.6474693,7.764e-05,2]
[420664119,1776448232925,-126856.19769768,7.765e-05,2]
[420664120,1776448232939,-26344.71958704,7.765e-05,2]
[420664121,1776448232950,-106712.49594784,7.765e-05,2]
[420664122,1776448232960,-16590.53309273,7.765e-05,2]
[420664123,1776448232972,-43017.45896522,7.765e-05,2]
[420664124,1776448232989,-9247.51838585,7.765e-05,2]
[420664125,1776448233001,-297.00772812,7.765e-05,2]
[420664126,1776448233011,-1531.0,7.765e-05,2]
[420664127,1776448233021,-153.15041052,7.765e-05,2]
[420664128,1776448233032,-1531.0,7.765e-05,2]
[420664129,1776448233042,-1531.0,7.765e-05,2]
[420664130,1776448233052,-1584.56276668,7.765e-05,2]
[420664131,1776448233062,-500.0,7.765e-05,2]
[420664132,1776448233072,-578.20924308,7.765e-05,2]
[420664133,1776448233083,-500.0,7.765e-05,2]
[420664134,1776448233093,-1530.0,7.765e-05,2]
[420664135,1776448233103,-154.08578314,7.767e-05,2]
[420664136,1776448233113,-150.0,7.786e-05,2]
[420664137,1776448233122,-150.0,7.791e-05,2]
[420664138,1776448233132,-61.37014354,7.8e-05,2]
[420664139,1776448235284,-2338.62985646,7.8e-05,2]
[420664140,1776448235295,-1052.83502418,7.808e-05,2]
[420664141,1776448235304,-150.0,7.813e-05,2]
[420664142,1776448235313,-17.50024354,7.813e-05,2]
[420664143,1776448235336,-132.49975646,7.813e-05,2]
[420664144,1776448235346,-1543.01750613,7.815e-05,2]
[420664145,1776448235359,-693.69606344,7.815e-05,2]
[420664146,1776448235371,-1557.27262659,7.815e-05,2]
[420664147,1776448235383,-488.47721465,7.815e-05,2]
[420664151,1776448237856,-1071.0,7.815e-05,2]
[420664152,1776448237908,-1694.0,7.815e-05,2]
[420664153,1776448237921,-628.77906689,7.815e-05,2]
[420664154,1776448237933,-1206.4460371,7.815e-05,2]
[420664155,1776448237943,-151.0,7.815e-05,2]
[420664156,1776448237953,-500.0,7.82e-05,2]
[420664157,1776448237965,-150.0,7.832e-05,2]
[420664158,1776448237976,-150.0,7.852e-05,2]
[420664159,1776448237986,-151.0,7.852e-05,2]
[420664160,1776448237997,-270.547787,7.852e-05,2]
[420664161,1776448238007,-270.547787,7.852e-05,2]
[420664162,1776448238018,-270.547787,7.852e-05,2]
[420664163,1776448238028,-270.547787,7.852e-05,2]
[420664164,1776448238039,-151.0,7.852e-05,2]
[420664166,1776448238049,-150.0,7.867e-05,2]
[420664167,1776448238059,-6260.923385,7.87e-05,2]
[420664168,1776448238072,-667.96197469,7.87e-05,2]
[420664169,1776448238085,-1393.62670692,7.87e-05,2]
[420664170,1776448238097,-888.83592324,7.87e-05,2]
[420664171,1776448238107,-151.0,7.87e-05,2]
[420664172,1776448238117,-500.0,7.875e-05,2]
[420664173,1776448238127,-2022.23106309,7.9e-05,2]
[420664174,1776448238146,-1678.19997191,7.9e-05,2]
[420664175,1776448238158,-1894.42310382,7.9e-05,2]
[420664176,1776448238173,-18048.34037684,7.9e-05,2]
[420664177,1776448238184,-993.3784,7.9e-05,2]
[420664178,1776448238195,-2678.99633183,7.9e-05,2]
[420664179,1776448238206,-4552.113131,7.9e-05,2]
[420664180,1776448238217,-347.886869,7.9e-05,2]
[420664181,1776448238227,-16.093131,7.91e-05,5]
[420664182,1776448238240,-563.11570627,7.91e-05,5]
[420664183,1776448238253,-1108.79116273,7.91e-05,5]
[420664184,1776448238263,-32.68015506,7.925e-05,2]
[420664185,1776448238367,-6000.0,7.925e-05,2]
[420664186,1776448238378,-3519.48771041,7.925e-05,2]
[420664187,1776448238387,-151.0,7.925e-05,2]
[420664188,1776448238397,-500.0,7.93e-05,2]
[420664189,1776448238406,-166.66,7.944e-05,2]
[420664190,1776448238416,-150.0,7.945e-05,2]
[420664191,1776448238426,-174.48765891,7.945e-05,2]
[420664192,1776448238436,-150.0,7.945e-05,2]
[420664193,1776448238445,-150.00000001,7.945e-05,2]
[420664194,1776448238455,-155.69776733,7.945e-05,2]
[420664195,1776448238465,-150.0,7.945e-05,2]
[420664196,1776448238474,-242.74312326,7.945e-05,2]
[420664197,1776448238484,-2487.2,7.959e-05,2]
[420664198,1776448238494,-184.993,7.959e-05,2]
[420664199,1776448238503,-250.0,7.975e-05,2]
[420664200,1776448238513,-1230.6653754,7.98e-05,2]
[420664201,1776448238567,-815.91901641,7.98e-05,2]
[420664202,1776448238579,-7859.01368469,7.98e-05,2]
[420664203,1776448238588,-151.0,7.98e-05,2]
[420664204,1776448238598,-150.0,7.984e-05,2]
[420664205,1776448238608,-500.0,7.985e-05,2]
[420664206,1776448238617,-2831.6,8e-05,2]
[420664207,1776448238626,-2831.6,8e-05,2]
[420664208,1776448238636,-7300.0,8e-05,2]
[420664209,1776448238646,-10272.10520533,8.035e-05,2]
[420664210,1776448238656,-151.0,8.035e-05,2]
[420664211,1776448238665,-450.33,8.038e-05,2]
[420664212,1776448238675,-500.0,8.04e-05,2]
[420664213,1776448238685,-151.0,8.05e-05,2]
[420664214,1776448238694,-151.0,8.072e-05,2]
[420664215,1776448238704,-151.0,8.072e-05,2]
[420664216,1776448238714,-280.468342,8.072e-05,2]
[420664217,1776448238723,-280.468342,8.072e-05,2]
[420664218,1776448238733,-280.468342,8.072e-05,2]
[420664219,1776448238742,-280.468342,8.072e-05,2]
[420664220,1776448238752,-151.0,8.072e-05,2]
[420664221,1776448238762,-151.0,8.072e-05,2]
[420664222,1776448238772,-10652.17309792,8.09e-05,2]
[420664223,1776448238781,-500.0,8.095e-05,2]
[420664224,1776448238790,-150.0,8.102e-05,2]
[420664225,1776448238800,-319.53707917,8.137e-05,2]
[420664226,1776448238809,-193.0,8.137e-05,2]
[420664227,1776448238819,-250.0,8.137e-05,2]
[420664228,1776448238828,-250.0,8.137e-05,2]
[420664229,1776448238838,-8129.57429279,8.145e-05,2]
[420664230,1776448238847,-500.0,8.15e-05,2]
[420664231,1776448238857,-4703.681878,8.178e-05,2]
[420664232,1776448238867,-151.0,8.182e-05,2]
[420664233,1776448238877,-270.547787,8.182e-05,2]
[420664234,1776448238886,-270.547787,8.182e-05,2]
[420664235,1776448238896,-270.547787,8.182e-05,2]
[420664236,1776448238905,-270.547787,8.182e-05,2]
[420664237,1776448238915,-151.274718,8.182e-05,2]
[420664238,1776448238924,-515.47771978,8.191e-05,2]
[420664239,1776448238934,-500.0,8.205e-05,2]
[420664240,1776448238943,-157.18611279,8.219e-05,2]
[420664241,1776448238952,-164.11863008,8.219e-05,2]
[420664242,1776448238962,-157.14731396,8.219e-05,2]
[420664243,1776448238971,-500.0,8.219e-05,2]
[420664244,1776448238981,-500.0,8.219e-05,2]
[420664245,1776448238990,-150.0,8.219e-05,2]
[420664246,1776448239000,-500.0,8.219e-05,2]
[420664247,1776448239011,-150.0,8.219e-05,2]
[420664248,1776448239020,-500.0,8.219e-05,2]
[420664249,1776448239030,-150.0,8.219e-05,2]
[420664250,1776448239040,-500.0,8.219e-05,2]
[420664251,1776448239050,-150.0,8.219e-05,2]
[420664252,1776448239059,-500.0,8.219e-05,2]
[420664253,1776448239069,-186.10399752,8.219e-05,2]
[420664254,1776448239078,-500.0,8.219e-05,2]
[420664255,1776448239088,-500.0,8.219e-05,2]
[420664256,1776448239098,-300.29500004,8.219e-05,2]
[420664257,1776448239108,-153.36543515,8.219e-05,2]
[420664258,1776448239118,-150.0,8.219e-05,2]
[420664259,1776448239128,-150.0,8.219e-05,2]
[420664260,1776448239137,-150.0,8.219e-05,2]
[420664261,1776448239147,-150.0,8.219e-05,2]
[420664262,1776448239157,-150.0,8.219e-05,2]
[420664263,1776448239166,-250.0,8.219e-05,2]
[420664264,1776448239176,-500.0,8.219e-05,2]
[420664265,1776448239185,-500.0,8.219e-05,2]
[420664267,1776448239196,-500.0,8.219e-05,2]
[420664268,1776448239205,-500.0,8.219e-05,2]
[420664269,1776448239214,-327.31217055,8.219e-05,2]
[420664270,1776448239225,-159.38052814,8.219e-05,2]
[420664271,1776448239235,-150.0,8.219e-05,2]
[420664272,1776448239244,-150.0,8.219e-05,2]
[420664273,1776448239254,-150.0,8.219e-05,2]
[420664274,1776448239264,-500.0,8.219e-05,2]
[420664275,1776448239274,-247.87591795,8.219e-05,2]
[420664276,1776448239283,-500.0,8.219e-05,2]
[420664277,1776448239294,-500.0,8.219e-05,2]
[420664278,1776448239303,-500.0,8.219e-05,2]
[420664279,1776448239312,-500.0,8.219e-05,2]
[420664280,1776448239322,-500.0,8.219e-05,2]
[420664281,1776448239331,-500.0,8.219e-05,2]
[420664282,1776448239341,-500.0,8.219e-05,2]
[420664283,1776448239350,-500.0,8.219e-05,2]
[420664284,1776448239360,-500.0,8.219e-05,2]
[420664285,1776448239370,-500.0,8.219e-05,2]
[420664286,1776448239379,-500.0,8.219e-05,2]
[420664287,1776448239390,-500.0,8.219e-05,2]
[420664288,1776448239399,-500.0,8.219e-05,2]
[420664289,1776448239409,-500.0,8.219e-05,2]
[420664290,1776448239418,-336.9945,8.219e-05,2]
[420664291,1776448239428,-152.3967772,8.219e-05,2]
[420664292,1776448239437,-228.58,8.219e-05,2]
[420664293,1776448239447,-2000.0,8.219e-05,2]
[420664294,1776448239456,-156.27,8.219e-05,2]
[420664295,1776448239466,-500.0,8.219e-05,2]
[420664296,1776448239475,-200.0,8.219e-05,2]
[420664297,1776448239485,-150.0,8.22e-05,2]
[420664298,1776448239495,-7906.786614,8.259e-05,2]
[420664299,1776448239505,-8671.898161,8.259e-05,2]
[420664300,1776448239515,-500.0,8.26e-05,2]
[420664301,1776448239524,-1600.0,8.291e-05,2]
[420664302,1776448239534,-1260.6067446,8.305e-05,2]
[420664303,1776448239544,-1328.27659266,8.308e-05,2]
[420664304,1776448239553,-200.0,8.308e-05,2]
[420664305,1776448239563,-771.01748645,8.308e-05,2]
[420664306,1776448239573,-181.08010149,8.308e-05,2]
[420664307,1776448239582,-194.72792766,8.308e-05,2]
[420664308,1776448239591,-290.26104003,8.308e-05,2]
[420664309,1776448239601,-450.33,8.312e-05,2]
[420664310,1776448239611,-500.0,8.315e-05,2]
[420664311,1776448239620,-184.809357,8.33e-05,2]
[420664312,1776448239629,-500.0,8.37e-05,2]
[420664313,1776448239639,-500.0,8.425e-05,2]
[420664314,1776448239648,-281.2793848,8.426e-05,2]
[420664315,1776448239658,-166.07,8.428e-05,2]
[420664316,1776448239667,-255.0,8.428e-05,2]
[420664317,1776448239677,-31027.004351,8.428e-05,2]
[420664318,1776448239687,-1680.0,8.428e-05,2]
[420664319,1776448239697,-500.0,8.48e-05,2]
[420664320,1776448239706,-200.0,8.493e-05,2]
[420664321,1776448239716,-200.0,8.493e-05,2]
[420664322,1776448239725,-200.0,8.493e-05,2]
[420664323,1776448239735,-200.0,8.493e-05,2]
[420664324,1776448239746,-200.0,8.493e-05,2]
[420664325,1776448239755,-200.0,8.493e-05,2]
[420664326,1776448239765,-200.0,8.493e-05,2]
[420664327,1776448239775,-500.0,8.493e-05,2]
[420664329,1776448239785,-2000.0,8.5e-05,2]
[420664330,1776448239795,-2742.0,8.5e-05,2]
[420664331,1776448239805,-150.0,8.52e-05,2]
[420664332,1776448239815,-221.43,8.542e-05,2]
[420664333,1776448239824,-1076.1598896,8.563e-05,2]
[420664334,1776448239834,-450.33,8.586e-05,2]
[420664335,1776448239844,-510.0,8.59e-05,2]
[420664336,1776448239854,-509.96985792,8.59e-05,2]
[420664337,1776448239863,-508.0,8.599e-05,2]
[420664338,1776448239873,-500.0,8.6e-05,2]
[420664339,1776448239882,-151.0,8.6e-05,2]
[420664340,1776448239892,-205.393831,8.6e-05,2]
[420664341,1776448239901,-280.468342,8.6e-05,2]
[420664342,1776448239911,-280.468342,8.6e-05,2]
[420664343,1776448239920,-280.468342,8.6e-05,2]
[420664344,1776448239930,-280.468342,8.6e-05,2]
[420664345,1776448239939,-151.0,8.6e-05,2]
[420664346,1776448239948,-151.0,8.6e-05,2]
[420664347,1776448239958,-442.89,8.656e-05,2]
[420664348,1776448239967,-4775.0,8.685e-05,2]
[420664349,1776448239977,-7866.0,8.685e-05,2]
[420664350,1776448239986,-151.0,8.697e-05,2]
[420664351,1776448239996,-151.0,8.697e-05,2]
[420664352,1776448240005,-1835.0,8.7e-05,5]
[420664353,1776448240015,-246198.33425593,8.7e-05,2]
[420664354,1776448240025,-151.0,8.7e-05,2]
[420664355,1776448240035,-280.468342,8.7e-05,2]
[420664356,1776448240045,-280.468342,8.7e-05,2]
[420664357,1776448240055,-280.468342,8.7e-05,2]
[420664358,1776448240064,-280.468342,8.7e-05,2]
[420664359,1776448240074,-151.0,8.7e-05,2]
[420664360,1776448240085,-151.0,8.7e-05,2]
[420664361,1776448240095,-151.0,8.7e-05,2]
[420664362,1776448240104,-270.547787,8.7e-05,2]
[420664363,1776448240114,-270.547787,8.7e-05,2]
[420664364,1776448240125,-270.547787,8.7e-05,2]
[420664365,1776448240135,-270.547787,8.7e-05,2]
[420664366,1776448240145,-156.27,8.733e-05,2]
[420664367,1776448240154,-240.1237285,8.741e-05,2]
[420664368,1776448240164,-500.0,8.767e-05,2]
[420664369,1776448240174,-150.0,8.82e-05,2]
[420664370,1776448240183,-1377.42282659,8.856e-05,2]
[420664371,1776448240193,-200.0,8.856e-05,2]
[420664372,1776448240203,-799.54513345,8.856e-05,2]
[420664373,1776448240212,-187.78006525,8.856e-05,2]
[420664374,1776448240221,-201.93286099,8.856e-05,2]
[420664375,1776448240231,-258.62516557,8.856e-05,2]
[420664376,1776448240241,-450.36,8.86e-05,2]
[420664377,1776448240251,-160.0,8.871e-05,2]
[420664378,1776448240260,-744.0,8.904e-05,2]
[420664379,1776448240271,-15363.7410724,8.956e-05,2]
[420664380,1776448240281,-156.0,8.966e-05,3]
[420664381,1776448240291,-9800.0,9e-05,3]
[420664382,1776448240301,-151.0,9.007e-05,2]
[420664383,1776448240311,-151.0,9.01e-05,2]
[420664384,1776448240321,-280.468342,9.01e-05,2]
[420664385,1776448240331,-280.468342,9.01e-05,2]
[420664386,1776448240340,-280.468342,9.01e-05,2]
[420664387,1776448240350,-280.468342,9.01e-05,2]
[420664388,1776448240359,-151.0,9.01e-05,2]
[420664389,1776448240368,-151.0,9.01e-05,2]
[420664390,1776448240378,-151.0,9.01e-05,2]
[420664391,1776448240388,-270.547787,9.01e-05,2]
[420664392,1776448240398,-270.547787,9.01e-05,2]
[420664393,1776448240408,-270.547787,9.01e-05,2]
[420664394,1776448240417,-270.547787,9.01e-05,2]
[420664395,1776448240427,-1531.0,9.01e-05,5]
[420664396,1776448240436,-100588.81571363,9.01e-05,2]
[420664397,1776448240463,-58219.56544797,9.01e-05,2]
[420664398,1776448240672,-5704.95328849,9.01e-05,2]
[420664399,1776448240683,-259.49504164,9.01e-05,2]
[420664400,1776448240695,-3428.69,9.01e-05,2]
[420664401,1776448240715,-1052.1217593,9.01e-05,2]
[420664402,1776448240726,-579.00472371,9.01e-05,2]
[420664404,1776448240778,-679.9945,9.01e-05,2]
[420664417,1776448242904,-4311.43348281,7.664e-05,2]
[420664418,1776448242914,-369.0,7.766e-05,7]
[420664419,1776448242924,-7398.34302776,9.01e-05,2]
[420664420,1776448242934,-610.50567959,9.041e-05,2]
[420664421,1776448242944,-151.0,9.097e-05,2]
[420664422,1776448242953,-261.67121865,9.097e-05,2]
[420664423,1776448242963,-150.0,9.099e-05,2]
[420664424,1776448242972,-89396.05379103,9.1e-05,2]
[420664425,1776448242985,-20945.6317975,9.1e-05,2]
[420664426,1776448242998,-262.24184995,9.1e-05,2]
[420664427,1776448243009,-13262.57237594,9.1e-05,2]
[420664428,1776448243049,-151.00490602,9.1e-05,2]
[420664429,1776448243067,-1848.15240083,9.1e-05,2]
[420664430,1776448243110,-6063.5075317,9.1e-05,2]
[420664439,1776448247389,-2656.4032,7.564e-05,2]
[420664440,1776448247399,-150.0,8.22e-05,2]
[420664441,1776448247409,-150.0,8.52e-05,2]
[420664442,1776448247418,-7043.389385,9.1e-05,2]
[420664443,1776448247429,-10241.52907826,9.1e-05,2]
[420664444,1776448247439,-4766.31906968,9.1e-05,2]
[420664445,1776448247454,-142172.51445758,9.1e-05,2]
[420664446,1776448247464,-9604.05907766,9.1e-05,2]
[420664447,1776448247489,-612.73558738,9.1e-05,2]
[420664448,1776448247500,-309.305235,9.1e-05,2]
[420664449,1776448247515,-3145.20540496,9.1e-05,2]
[420664450,1776448332989,500.0,7.164e-05,2]
[420664451,1776448381196,300.0,7.562e-05,2]
[420664452,1776448385457,156.0,7.164e-05,3]
[420664453,1776448443147,150.0,7.562e-05,2]
[420664454,1776448445123,156.0,7.164e-05,3]
[420664455,1776448453983,1200.0,7.562e-05,2]
[420664456,1776448455290,300.0,7.562e-05,2]
[420664462,1776448485363,495.42461552,7.562e-05,2]
[420664463,1776448485407,500.0,7.562e-05,2]
[420664464,1776448485582,500.0,7.562e-05,2]
[420664465,1776448486171,546.35840046,7.562e-05,2]
[420664466,1776448486759,500.0,7.562e-05,2]
[420664467,1776448486992,1990.62356633,7.562e-05,2]
[420664468,1776448487027,500.0,7.562e-05,2]
[420664469,1776448487062,500.0,7.562e-05,2]
[420664470,1776448487111,1990.62356633,7.562e-05,2]
[420664471,1776448487145,214.97985136,7.562e-05,2]
[420664472,1776448487167,285.02014864,7.562e-05,2]
[420664473,1776448487205,500.0,7.562e-05,2]
[420664474,1776448487240,1990.62356633,7.562e-05,2]
[420664475,1776448487278,274.03659205,7.562e-05,2]
[420664476,1776448489290,1990.62356633,7.562e-05,2]
[420664477,1776448489753,500.0,7.562e-05,2]
[420664478,1776448489783,500.0,7.562e-05,2]
[420664479,1776448489826,1990.62356633,7.562e-05,2]
[420664480,1776448489867,500.0,7.562e-05,2]
[420664481,1776448489912,500.0,7.562e-05,2]
[420664482,1776448489950,969.08256032,7.562e-05,2]
[420664483,1776448489979,1021.54100601,7.562e-05,2]
[420664484,1776448490023,1990.62356633,7.562e-05,2]
[420664485,1776448490055,500.0,7.562e-05,2]
[420664486,1776448490095,500.0,7.562e-05,2]
[420664487,1776448490133,1990.62356633,7.562e-05,2]
[420664488,1776448490179,1990.62356633,7.562e-05,2]
[420664489,1776448490208,500.0,7.562e-05,2]
[420664490,1776448490253,1506.598295,7.562e-05,2]
[420664491,1776448490278,484.02527133,7.562e-05,2]
[420664492,1776448490316,581.78633364,7.562e-05,2]
[420664493,1776448490353,1990.62356633,7.562e-05,2]
[420664494,1776448490401,1990.62356633,7.562e-05,2]
[420664495,1776448490447,1990.62356633,7.562e-05,2]
[420664496,1776448490494,1990.62356633,7.562e-05,2]
[420664497,1776448490546,971.70412971,7.562e-05,2]
[420664498,1776448490573,1018.91943662,7.562e-05,2]
[420664499,1776448490627,1990.62356633,7.562e-05,2]
[420664500,1776448490717,1990.62356633,7.562e-05,2]
[420664501,1776448490764,1990.62356633,7.562e-05,2]
[420664502,1776448490803,1990.62356633,7.562e-05,2]
[420664503,1776448490844,1018.59629806,7.562e-05,2]
[420664504,1776448490873,972.02726827,7.562e-05,2]
[420664505,1776448490926,1990.62356633,7.562e-05,2]
[420664506,1776448490967,1990.62356633,7.562e-05,2]
[420664507,1776448491056,1990.62356633,7.562e-05,2]
[420664508,1776448491104,1990.62356633,7.562e-05,2]
[420664509,1776448491148,1065.48846641,7.562e-05,2]
[420664510,1776448491174,925.13509992,7.562e-05,2]
[420664511,1776448491219,1990.62356633,7.562e-05,2]
[420664512,1776448491272,1990.62356633,7.562e-05,2]
[420664513,1776448491319,1990.62356633,7.562e-05,2]
[420664514,1776448491362,1990.62356633,7.562e-05,2]
[420664515,1776448491437,1112.38063476,7.562e-05,2]
[420664516,1776448491464,878.24293157,7.562e-05,2]
[420664517,1776448491506,1990.62356633,7.562e-05,2]
[420664518,1776448491555,1990.62356633,7.562e-05,2]
[420664519,1776448491613,1990.62356633,7.562e-05,2]
[420664520,1776448491655,1990.62356633,7.562e-05,2]
[420664521,1776448491712,1159.27280311,7.562e-05,2]
[420664522,1776448492537,-831.35076322,7.562e-05,2]
[420664523,1776448492577,-1990.62356633,7.562e-05,2]
[420664524,1776448492615,-1990.62356633,7.562e-05,2]
[420664538,1776448884225,-300.0,7.533e-05,2]
[420664539,1776448884258,-300.0,7.533e-05,2]
[420664540,1776448884291,-249.0,7.533e-05,2]
[420664541,1776448884320,-2525.02,7.534e-05,2]
[420664542,1776448884458,-3251.97,7.534e-05,2]
[420664543,1776448884489,-671.3784,7.534e-05,2]
[420664544,1776448884519,-500.0,7.543e-05,2]
[420664545,1776448884550,-500.0,7.543e-05,2]
[420664546,1776448884638,-1200.0,7.551e-05,2]
[420664547,1776448884669,-300.0,7.551e-05,2]
[420664548,1776448884700,-1200.0,7.551e-05,2]
[420664549,1776448884730,-300.0,7.551e-05,2]
[420664550,1776448884760,-500.0,7.551e-05,2]
[420664551,1776448884791,-150.0,7.551e-05,2]
[420664552,1776448884827,-200.01,7.551e-05,2]
[420664553,1776448884874,-2299.99,7.551e-05,2]
[420664554,1776448884906,-350.0,7.551e-05,2]
[420664555,1776448889608,-2611.559,7.551e-05,2]
[420664556,1776448889639,-184.992,7.551e-05,2]
[420664557,1776448890108,-4399.93524398,7.552e-05,2]
[420664558,1776448890973,-10000.01,7.552e-05,2]
[420664559,1776448891164,-10000.01,7.552e-05,2]
[420664560,1776448891364,-10000.01,7.552e-05,2]
[420664561,1776448891601,-10000.01,7.552e-05,2]
[420664562,1776448898348,-10000.01,7.552e-05,2]
[420664563,1776448898689,-2137.3342139,7.552e-05,2]
[420664564,1776448926995,151.0,7.552e-05,3]
[420664565,1776448940692,-151.0,7.56e-05,2]
[420664566,1776448940722,-151.0,7.56e-05,2]
[420664567,1776448940751,-250.0,7.56e-05,2]
[420664568,1776448940782,-308.22628801,7.56e-05,2]
[420664569,1776448940811,-500.0,7.56e-05,2]
[420664570,1776448940844,-500.0,7.56e-05,2]
[420664571,1776448940871,-500.0,7.56e-05,2]
[420664572,1776448940905,-177.50279463,7.56e-05,2]
[420664573,1776448940934,-500.0,7.56e-05,2]
[420664574,1776448940969,-500.0,7.56e-05,2]
[420664575,1776448940996,-369.38707669,7.56e-05,2]
[420664576,1776448941030,-500.0,7.56e-05,2]
[420664577,1776448941064,-500.0,7.56e-05,2]
[420664578,1776448941231,-500.0,7.56e-05,2]
[420664579,1776448941268,-500.0,7.56e-05,2]
[420664580,1776448941298,-433.95222071,7.56e-05,2]
[420664581,1776448941327,-500.0,7.56e-05,2]
[420664582,1776448941355,-500.0,7.56e-05,2]
[420664583,1776448941385,-397.97625929,7.56e-05,2]
[420664584,1776448941414,-500.0,7.56e-05,2]
[420664585,1776448941447,-608.73555274,7.56e-05,2]
[420664586,1776448941481,-500.0,7.56e-05,2]
[420664587,1776448941600,-1331.59577337,7.56e-05,2]
[420664588,1776448941636,-1331.59577337,7.56e-05,2]
[420664589,1776448941671,-1331.59577337,7.56e-05,2]
[420664590,1776448941707,-678.83958641,7.56e-05,2]
[420664591,1776448942204,-500.0,7.56e-05,2]
[420664592,1776448942219,-152.75618696,7.56e-05,2]
[420664593,1776448942229,-1178.83958641,7.56e-05,2]
[420664594,1776448943795,-152.75618696,7.56e-05,2]
[420664595,1776448943830,-1331.59577337,7.56e-05,2]
[420664596,1776448943867,-1331.59577337,7.56e-05,2]
[420664597,1776448943905,-1331.59577337,7.56e-05,2]
[420664598,1776448943941,-373.32721249,7.56e-05,2]
[420664599,1776448946799,-958.26856088,7.56e-05,2]
[420664600,1776448947466,-1331.59577337,7.56e-05,2]
[420664601,1776448947505,-1331.59577337,7.56e-05,2]
[420664602,1776448947546,-1331.59577337,7.56e-05,2]
[420664603,1776448947584,-678.83958641,7.56e-05,2]
[420664604,1776448947644,-652.75618696,7.56e-05,2]
[420664605,1776448947681,-1331.59577337,7.56e-05,2]
[420664606,1776448947716,-1331.59577337,7.56e-05,2]
[420664607,1776448947750,-1331.59577337,7.56e-05,2]
[420664608,1776448947808,-1331.59577337,7.56e-05,2]
[420664609,1776448947848,-1331.59577337,7.56e-05,2]
[420664610,1776448947884,-1331.59577337,7.56e-05,2]
[420664611,1776448947919,-678.83958641,7.56e-05,2]